Cogmind - Beta 13 @@@ ROGUE MODE // 2024.03.11 @ 15:12:09 Player: Treadwheel Result: Destroyed by G-34 Mercenary with Small Laser Performance ------------- Evolutions (0) 0 Regions Visited (4) 800 Robots Destroyed (33) 165 Value Destroyed (647) 647 Prototype IDs (1) 20 Alien Tech Used (0) 0 Bonus (0) 0 TOTAL SCORE: 1632 Bonus ------- None Cogmind --------- Core Integrity 0/250 Matter 300/300 Energy 275/275 System Corruption 0% Temperature Cool (6) Movement Rolling (145) Ox3 Location -9/Mines Parts ------- > --- POWER (1) -------- Deuterium Engine > --- PROPULSION (2) --- Light Treads Compact Wheel > --- UTILITY (2) ------ High-capacity Storage Unit Signal Interpreter > --- WEAPON (2) ------- High-powered Shotgun Light Cannon > --- INVENTORY (20) --- Ion Engine Light Treads Compact Wheel Compact Wheel Cesium-ion Thruster Disposable Heat Sink Disposable Heat Sink Medium Storage Unit Advanced Weight Redist. System Sensor Array Transport Network Coupler Actuator Array Light Armor Plating Light Armor Plating Hardened Medium Armor Plating Improved EM Shotgun Light Cannon Grenade Launcher Rocket Launcher Mining Claw Peak State ------------ > --- POWER ------------ Deuterium Engine > --- PROPULSION ------- Light Treads Compact Wheel > --- UTILITY ---------- High-capacity Storage Unit Hardened Medium Armor Plating > --- WEAPON ----------- High-powered Shotgun Light Cannon > --- INVENTORY -------- Ion Engine Light Treads Compact Wheel Compact Wheel Cesium-ion Thruster Disposable Heat Sink Disposable Heat Sink Medium Storage Unit Weight Redist. System Advanced Weight Redist. System Sensor Array Signal Interpreter Transport Network Coupler Actuator Array Light Armor Plating Light Armor Plating Improved EM Shotgun Light Cannon Light Cannon Grenade Launcher [Rating: 16] Favorites ----------- Power Deuterium Engine Engine Deuterium Engine Propulsion Light Treads Treads Light Treads Leg Aluminum Leg Wheel Compact Wheel Utility High-capacity Storage Unit Device Sensor Array Storage High-capacity Storage Unit Processor Signal Interpreter Protection Hardened Medium Armor Plating Weapon Light Cannon Energy Gun Improved EM Shotgun Ballistic Gun High-powered Shotgun Ballistic Cannon Light Cannon Launcher Grenade Launcher Build | -11 -10 -10 -10 -9 ------- Run | Yrd Mat Min Exi Min Slots Evolved . | . . . . . Power . | . . . . . Propulsion . | . . . . . Utility . | . . . . . Weapon . | . . . . . Parts Attached 32 | 4 20 7 1 . Power 5 | . 3 2 . . Engine 5 | . 3 2 . . Core . | . . . . . Reactor . | . . . . . Propulsion 4 | 2 1 1 . . Treads 2 | 1 . 1 . . Leg . | . . . . . Wheel 2 | 1 1 . . . Hover . | . . . . . Flight . | . . . . . Utility 14 | 1 10 2 1 . Device 5 | 1 4 . . . Storage 3 | . 3 . . . Processor 1 | . . . 1 . Hackware . | . . . . . Protection 5 | . 3 2 . . Artifact . | . . . . . Weapon 9 | 1 6 2 . . Energy Gun 1 | . 1 . . . Energy Cannon . | . . . . . Ballistic Gun 2 | 1 . 1 . . Ballistic Cannon 5 | . 4 1 . . Launcher 1 | . 1 . . . Special Weapon . | . . . . . Impact Weapon . | . . . . . Slashing Weapon . | . . . . . Piercing Weapon . | . . . . . Special Melee Weapon . | . . . . . Unidentified Prototypes 1 | . 1 . . . Parts Lost 3 | . . 3 . . Power 1 | . . 1 . . Propulsion 1 | . . 1 . . Utility . | . . . . . Weapon 1 | . . 1 . . Highest Loss Streak 3 | . . 3 . . To Critical Strikes . | . . . . . Average Slot Usage (%) 99 | . 99 97 100 100 Engine 13 | . 14 11 14 14 Treads 14 | . 14 14 14 14 Wheel 13 | . 13 14 14 14 Device 5 | . 10 3 . . Storage 14 | . 14 14 14 14 Processor 2 | . . . 1 14 Protection 5 | . 3 10 12 . Ballistic Gun 6 | . 1 7 14 14 Ballistic Cannon 21 | . 25 20 14 14 Naked Turns . | . . . . . Heaviest Build 63 | 13 52 63 63 55 Greatest Support 20 | 20 20 16 16 16 Greatest Overweight (x) 3 | . 3 3 3 3 Average Overweight (x) 1 | . . 3 3 3 Largest Inventory Capacity 20 | 8 20 20 20 20 Average Capacity 15 | 8 10 20 20 20 Most Carried 20 | 8 15 20 20 20 Average Carried 14 | 7 9 18 20 19 Final Capacity 20 | 8 20 20 20 20 Final Carried 20 | 8 15 20 20 20 Class Distribution -------------------- 100% | Mutant Dominant Class ---------------- Mutant | -10/Materials Mutant | -10/Mines Mutant | -10/Exiles Mutant | -9/Mines Resources | -11 -10 -10 -10 -9 ----------- Run | Yrd Mat Min Exi Min Matter Collected 1040 | 288 530 212 . 10 Remotely . | . . . . . Salvage Created 722 | 177 406 139 . . Parts 62 | 20 34 8 . . Haulers Intercepted 2 | . 2 . . . Recyclers Shooed . | . . . . . Parts Field Recycled . | . . . . . Retrieved Matter . | . . . . . Parts Self-Destructed . | . . . . . Prevented . | . . . . . Kills | -11 -10 -10 -10 -9 ------- Run | Yrd Mat Min Exi Min Combat Hostiles Destroyed 21 | . 16 5 . . Guns 1 | . . 1 . . Cannons 20 | . 16 4 . . Classes Destroyed 8 | 2 4 2 . . Worker 1 | . . 1 . . Tunneler 5 | 5 . . . . Hauler 2 | . 2 . . . Recycler 1 | 1 . . . . Watcher 3 | . 3 . . . Swarmer 9 | . 9 . . . Grunt 11 | . 7 4 . . Demolisher 1 | . . 1 . . Best Kill Streak 4 | 2 4 2 . . Combat Bots Only 3 | . 3 2 . . Max Kills in Single Turn 1 | 1 1 1 . . Gunslinging . | . . . . . Exploded . | . . . . . Melee . | . . . . . Uniques/NPCs Destroyed . | . . . . . Combat | -11 -10 -10 -10 -9 -------- Run | Yrd Mat Min Exi Min Hostile Shots Fired 82 | . 50 28 . 4 Missed 17 | . 10 5 . 2 Damage Taken 1061 | . 360 679 . 22 Core 251 | . 90 150 . 11 Absorbed by Shields . | . . . . . Regen/Repaired (Parts) 79 | . 79 . . . Core Remaining (%) 100 | 100 . . . . Volleys Fired 72 | 11 47 14 . . Largest 2 | 2 2 2 . . Hottest 70 | 40 70 70 . . Shots Fired 144 | 22 94 28 . . Gun 34 | 22 6 6 . . Cannon 110 | . 88 22 . . Launcher . | . . . . . Special . | . . . . . Kinetic 144 | 22 94 28 . . Thermal . | . . . . . Explosive . | . . . . . Electromagnetic . | . . . . . Robot Hit Streak 6 | 4 6 4 . . Robot Miss Streak 6 | 2 6 3 . . Penetration Max . | . . . . . Secondary Targets . | . . . . . Shots Hit Robots 78 | 12 48 18 . . Core Hits 39 | 7 21 11 . . Critical Kills . | . . . . . Critical Parts Destroyed . | . . . . . Critical Strikes 3 | . 2 1 . . Blast 3 | . 2 1 . . Melee Attacks . | . . . . . Impact . | . . . . . Slashing . | . . . . . Piercing . | . . . . . Sneak Attacks . | . . . . . Combat Hostiles . | . . . . . Follow-up Attacks . | . . . . . Damage Inflicted 1333 | 136 861 336 . . Guns 288 | 136 61 91 . . Cannons 1045 | . 800 245 . . Explosions . | . . . . . Melee . | . . . . . Ramming . | . . . . . Kinetic 1333 | 136 861 336 . . Thermal . | . . . . . Explosive . | . . . . . Electromagnetic . | . . . . . Impact . | . . . . . Slashing . | . . . . . Piercing . | . . . . . Highest Corruption . | . . . . . Average Corruption . | . . . . . Corruption Purged . | . . . . . Corruption Blocked . | . . . . . Overload Shots . | . . . . . Overflow Damage 16 | . 16 . . . Projectiles 16 | . 16 . . . Explosions . | . . . . . Melee . | . . . . . Knockbacks 8 | . 6 2 . . Impact . | . . . . . Kinetic 8 | . 6 2 . . Secondary . | . . . . . Self-Inflicted Damage . | . . . . . Shots . | . . . . . Rammed . | . . . . . Targets Rammed . | . . . . . Kicked . | . . . . . Crushed . | . . . . . Highest Temperature 150 | . 108 150 . . Average Temperature 33 | . 27 51 . . Received Heat Transfer 204 | . 96 96 . 12 Siege Activations . | . . . . . Robots Corrupted . | . . . . . Combat Hostiles . | . . . . . Parts Fried . | . . . . . Impact Corruptions . | . . . . . Robots Melted . | . . . . . Combat Hostiles . | . . . . . Parts Melted . | . . . . . Heat Transferred . | . . . . . Parts Sabotaged . | . . . . . Parts Stolen . | . . . . . Parts Stripped . | . . . . . Power Chain Reactions . | . . . . . Alert | -11 -10 -10 -10 -9 ------- Run | Yrd Mat Min Exi Min Peak Influence 314 | 30 314 128 . . Initial 63 | . 19 63 . . Average 103 | 18 165 81 . . Maximum Alert Level 1 | . 1 . . . Low Security (%) 82 | 100 63 100 . 100 Level 1 17 | . 36 . . . Level 2 . | . . . . . Level 3 . | . . . . . Level 4 . | . . . . . Level 5 . | . . . . . High Security . | . . . . . Max Security . | . . . . . Squads Dispatched 4 | . 3 1 . . Investigation 3 | . 2 1 . . Extermination . | . . . . . Reinforcement 1 | . 1 . . . Assault . | . . . . . Garrison . | . . . . . Intercept . | . . . . . Searches Triggered . | . . . . . Construction Impeded . | . . . . . Haulers Reinforced . | . . . . . Active Scanning Responses . | . . . . . Cargo Convoy Interrupts . | . . . . . Stealth | -11 -10 -10 -10 -9 --------- Run | Yrd Mat Min Exi Min Distress Signals 2 | . 2 . . . Communications Jammed . | . . . . . Distress Signals . | . . . . . Times Spotted 36 | . 28 6 . 2 Peak Tracking Total 5 | . 5 2 . 2 Tactical Retreats 3 | . 3 . . . Traps | -11 -10 -10 -10 -9 ------- Run | Yrd Mat Min Exi Min Traps Triggered 2 | . 2 . . . Indirectly . | . . . . . Trap Hack Attempts . | . . . . . Triggered . | . . . . . Disarmed . | . . . . . Reprogrammed . | . . . . . Reused . | . . . . . Traps Extracted . | . . . . . Installed . | . . . . . Triggered . | . . . . . Machines | -11 -10 -10 -10 -9 ---------- Run | Yrd Mat Min Exi Min Machines Disabled 1 | . 1 . . . Max in Single Turn 1 | . 1 . . . Machines Repaired . | . . . . . Machines Dismantled . | . . . . . Machines Sabotaged . | . . . . . Overloaded Fab Kills . | . . . . . Hacking | -11 -10 -10 -10 -9 --------- Run | Yrd Mat Min Exi Min Machines Accessed 8 | . 7 1 . . Terminals 5 | . 5 . . . Fabricators . | . . . . . Repair Stations 1 | . 1 . . . Recycling Units 1 | . 1 . . . Scanalyzers . | . . . . . Garrison Access . | . . . . . Total Hacks 21 | . 20 1 . . Successful 12 | . 11 1 . . Failed 9 | . 9 . . . Catastrophic . | . . . . . Database Lockouts . | . . . . . Manual 8 | . 8 . . . Terminals 14 | . 14 . . . Fabricators . | . . . . . Repair Stations 4 | . 4 . . . Recycling Units 2 | . 2 . . . Scanalyzers . | . . . . . Garrison Access . | . . . . . Terminal Hacks 4 | . 3 1 . . Robot Analysis 1 | . 1 . . . Open Door 1 | . . 1 . . Terminal Index 1 | . 1 . . . Hauler Manifests 1 | . 1 . . . Fabricator Hacks . | . . . . . Repair Station Hacks 4 | . 4 . . . Scan Component 2 | . 2 . . . Repair 2 | . 2 . . . Recycling Unit Hacks . | . . . . . Scanalyzer . | . . . . . Garrison Access Hacks . | . . . . . Unauthorized Hacks 4 | . 4 . . . Terminals 2 | . 2 . . . Botnet 2 | . 2 . . . Fabricators . | . . . . . Repair Stations . | . . . . . Recycling Units 2 | . 2 . . . Reject 1 | . 1 . . . Mask 1 | . 1 . . . Scanalyzers . | . . . . . Garrison Access . | . . . . . Data Cores Recovered . | . . . . . Used . | . . . . . Hacking Detections 7 | . 7 . . . Full Trace Events . | . . . . . Feedback Events . | . . . . . Feedback Blocked . | . . . . . Robot Schematics Acquired . | . . . . . Robots Built . | . . . . . Authchips . | . . . . . Time . | . . . . . Total Robot Build Rating . | . . . . . Part Schematics Acquired . | . . . . . Parts Built . | . . . . . Authchips . | . . . . . Time . | . . . . . Total Part Build Rating . | . . . . . Parts Repaired 2 | . 2 . . . Time 52 | . 52 . . . Parts Recycled . | . . . . . Recycled Matter . | . . . . . Retrieved Matter . | . . . . . Retrieved Components . | . . . . . Parts Scanalyzed . | . . . . . Part Schematics Acquired . | . . . . . Parts Damaged . | . . . . . Bothacking | -11 -10 -10 -10 -9 ------------ Run | Yrd Mat Min Exi Min Used RIF Installer . | . . . . . Robots Hacked . | . . . . . Non-combat . | . . . . . Combat . | . . . . . Robot Hacks Applied . | . . . . . Relay Couplers Released . | . . . . . Fabnet Peak Effective % . | . . . . . Robots Rewired . | . . . . . Allies Hacked . | . . . . . Hacks Repelled . | . . . . . Allies | -11 -10 -10 -10 -9 -------- Run | Yrd Mat Min Exi Min Total Allies . | . . . . . Largest Group . | . . . . . Highest-Rated Group . | . . . . . Highest-Rated Ally . | . . . . . Total Orders . | . . . . . Ally Attacks . | . . . . . Total Damage . | . . . . . Kills . | . . . . . Allies Corrupted . | . . . . . Allies Melted . | . . . . . Intel | -11 -10 -10 -10 -9 ------- Run | Yrd Mat Min Exi Min Robot Analysis Total 1 | . 1 . . . Derelict Logs Recovered 4 | . . 1 . 3 Drone Launches . | . . . . . Drone Recoveries . | . . . . . Exploration | -11 -10 -10 -10 -9 ------------- Run | Yrd Mat Min Exi Min Turns Passed 3272 | 211 1419 786 344 512 Spaces Moved 2109 | 106 930 486 237 350 Core . | . . . . . Treads 179 | 94 85 . . . Legs 12 | 12 . . . . Wheels 1918 | . 845 486 237 350 Hover . | . . . . . Flight . | . . . . . Fastest Speed 100 | 120 100 145 145 145 Average Speed 134 | 155 119 145 145 145 Slowest Speed 160 | 160 160 145 145 145 Overloaded Moves . | . . . . . Propulsion Burnouts . | . . . . . Robots Hopped . | . . . . . Cave-ins Triggered . | . . . . . Exploration Rate (%) 58 | 5 96 62 61 69 Regions Visited 4 Branch Regions 3 Pre-discovered Areas 2 | . . 1 . 1 Known Exits Taken 1 | . . . 1 . Unknown Exits Taken 3 | 1 1 1 . . Scrap Searched 4 | . . 1 . 3 Spaces Dug . | . . . . . Terrain Destroyed . | . . . . . Melee . | . . . . . Projectile . | . . . . . AOE . | . . . . . Terrain Rammed . | . . . . . Walls Destroyed . | . . . . . Machines Disabled . | . . . . . Actions | -11 -10 -10 -10 -9 --------- Run | Yrd Mat Min Exi Min Total 2402 | 131 1141 538 237 355 Wait 145 | 7 113 25 . . Move 2105 | 105 929 485 236 350 Hop . | . . . . . Pick Up 23 | 3 13 5 . 2 Fast Attach 9 | 1 6 2 . . Attach 3 | . 1 2 . . Detach 4 | . 3 1 . . Swap 20 | 3 13 3 1 . Drop 20 | 1 16 1 . 2 Fire 72 | 11 47 14 . . Melee . | . . . . . Ram . | . . . . . Kick . | . . . . . Crush . | . . . . . Escape Stasis . | . . . . . Rewire 1 | . . . . 1 Trap . | . . . . . Miscellaneous . | . . . . . Route ------- -11/Scrapyard -10/Materials (discovered 6 exits: [*Mat x3] / *Min x2 / [*Sub]) -10/Mines (discovered 2 exits: [*Mat] / [*Exi]) -10/Exiles (discovered 2 exits: *Min x2) -9/Mines (discovered 2 exits: [*Mat x2]) History --------- Turn | Location | Event 1 | -11/Scrapyard | Discovered new exit (range 3) 212 | -11/Scrapyard | Entered Materials 259 | -10/Materials | Discovered new exit (range 12) 300 | -10/Materials | Build established: Mutant 444 | -10/Materials | Discovered new exit (range 16) 886 | -10/Materials | Discovered new exit (range 4) 957 | -10/Materials | Discovered new exit (range 16) 1059 | -10/Materials | Repaired Com. Wheel 1087 | -10/Materials | Repaired Lgt. Armor Plating 1192 | -10/Materials | Discovered new exit (range 13) 1299 | -10/Materials | Discovered new exit (range 16) 1631 | -10/Materials | Entered Mines 1656 | -10/Mines | Met a Derelict bent on vengeance 1678 | -10/Mines | Deemed a non-threat by the Exiles lab entrance 1678 | -10/Mines | Discovered new exit (range 5) 1801 | -10/Mines | Assembled infested the area 1838 | -10/Mines | Core integrity fell below 50% 1850 | -10/Mines | Core integrity fell below 20% 1874 | -10/Mines | Lost 3 parts (1p1n1w) 1931 | -10/Mines | Met a Derelict shopkeep closing up shop 2102 | -10/Mines | Learned location of Zion (-6) 2259 | -10/Mines | Discovered new exit (range 8) 2417 | -10/Mines | Entered Exiles 2439 | -10/Exiles | Discovered new exit (range 14) 2460 | -10/Exiles | Met 8R-AWN 2483 | -10/Exiles | Met EX-HEX 2568 | -10/Exiles | Met EX-DEC 2598 | -10/Exiles | Visited The Gauntlet 2715 | -10/Exiles | Discovered new exit (range 14) 2735 | -10/Exiles | Identified exit to Mines 2761 | -10/Exiles | Entered Mines 3170 | -9/Mines | Discovered new exit (range 6) 3174 | -9/Mines | Learned location of 1 exit from Materials 3251 | -9/Mines | Discovered new exit (range 7) 3273 | -9/Mines | Destroyed by G-34 Mercenary with Small Laser Last Messages --------------- 02963_ Attempting to rewire R-06 Scavenger. 02963_ R-06 Scavenger is broken beyond repair. 02996_ Acquired derelict log, extracted data. Data stored: Factory entrances (x1). 03009_ Acquired derelict log, extracted data. World map updated: -8/Materials. 03170_ EXIT=FOUND 03174_ Acquired derelict log, extracted data. Data stored: Materials exits (x1). 03177_ Searching scrap... 03177_ Found Lgt. Assault Rifle. 03177_ Found Assault Rifle. 03177_ Found 19 Matter. 03195_ Searching scrap... 03195_ Found Hvy. Assault Rifle. 03195_ Found 30 Matter. 03251_ EXIT=FOUND 03252_ C-30 ARC bursts open, deploying its payload. 03252_ G-47 Trooper unfolds itself. 03252_ G-34 Mercenary unfolds itself. Map ----- +----------------------------------------------------+ | | | | | | | | | | | | | ?????????????????????????????????????????????? | | ?????????????????????????????????????????????? | | ?????????????????????????????????????????????? | | ?????????????????????????????????????????????? | | ?????????????????????????????????????????????? | | ?????????????????????????????????????????????? | | ?????????????????????????????????????????????? | | ?????????????????????????????????????????????? | | ?????????????????????????????????????????????? | | ?????????????????????????????????????????????? | | ????????????????????????????????#????????????? | | ???????????????????????????????? #???????????? | | ??????????????????????????????? ##??????????? | | ??????????????????????????????# ##?????????? | | ??????????????????????????????# ######????? | | ?????????????????????????###### ?????? | | ????????????????????????## ## #????????? | | ???????????############## #????????? | | ???????????# """" #?????????? | | ???????????# gg @ """" #?????????? | | ???????????# ############# """" #?????????? | | ??#????????# #???????????## #?????????? | | ??# ??????# #????????????# ## #?????????? | | ??# %